bitfinex-derivatives/quotes_ETHF0:USTF0_20250530
["timestamp","ask_amount","ask_price","bid_price","bid_amount"]
[1748563679418,0.06993857,2636.5,2636.4,0.75854]
[1748563680726,0.06993857,2636.5,2636.4,3.96634]
[1748563682219,0.06993857,2636.5,2636.4,8.96634]
[1748563682922,3.2078,2637.1,2637.0,0.75837]
[1748563683223,1.17176099,2637.1,2637.0,0.75837]
[1748563683421,0.76396141,2637.4,2637.0,0.75837]
[1748563683628,0.00569141,2637.4,2637.3,0.75828]
[1748563683821,0.00569141,2637.4,2637.3,4.96628]
[1748563684323,0.00569141,2637.4,2637.3,6.25828]
[1748563691227,0.00569141,2637.4,2636.9,3.2078]
[1748563691432,0.75834,2637.1,2637.0,1.39696]
[1748563691634,0.75834,2637.1,2637.0,0.6386]
[1748563691837,1.89581,2637.2,2636.5,3.2078]
[1748563692132,0.82844857,2636.5,2636.4,4.8456]
[1748563692331,0.06993857,2636.5,2636.4,5.60414]
[1748563693031,0.06993857,2636.5,2636.4,4.207]
[1748563693032,0.82844857,2636.5,2636.4,4.207]
[1748563694230,0.75857,2636.3,2636.2,0.00569141]
[1748563694434,0.06993857,2636.5,2636.4,0.75854]
[1748563696530,0.06993857,2636.5,2636.4,2.04004]
[1748563699543,0.25953857,2636.5,2636.4,2.04004]
[1748563702345,0.25953857,2636.5,2636.4,6.22704]
[1748563704543,1.01804857,2636.5,2636.4,6.22704]
[1748563705043,0.25953857,2636.5,2636.4,6.22704]
[1748563707145,0.25953857,2636.5,2636.4,21.42704]
[1748563707346,0.25953857,2636.5,2636.4,24.63484]
[1748563710542,0.75842,2636.8,2636.4,24.63484]
[1748563710543,0.75836,2637.1,2637.0,0.75834]
[1748563710745,0.75836,2637.1,2637.0,4.94534]
[1748563710946,1.9073,2637.2,2637.1,0.75834]
[1748563710947,2.66563,2637.2,2637.1,0.75834]
[1748563711148,1.2798,2637.2,2637.1,0.75834]
[1748563712046,0.00569141,2637.4,2637.3,0.75828]
[1748563712247,0.00569141,2637.4,2637.3,3.96608]
[1748563716249,0.00569141,2637.4,2637.3,19.16608]
[1748563728563,0.75801,2638.3,2638.2,0.758]
[1748563728853,0.75799,2638.4,2638.3,0.75798]
[1748563729256,1.99989,2638.4,2638.3,0.75798]
[1748563729855,1.89413,2639.5,2638.4,1.89492]
[1748563730156,1.8916,2639.2,2639.0,0.75779]
[1748563730460,0.75778,2639.1,2639.0,4.92279]
[1748563730659,1.99968,2639.1,2639.0,4.165]
[1748563730959,1.99968,2639.1,2638.9,0.7578]
[1748563731167,1.99968,2639.1,2639.0,4.165]
[1748563731462,1.2419,2639.1,2639.0,4.92279]
[1748563731654,1.99966,2639.1,2639.0,4.92279]
[1748563733361,1.2419,2639.1,2639.0,4.92279]
[1748563735359,1.99966,2639.1,2639.0,4.92279]
[1748563735764,1.2419,2639.1,2639.0,4.92279]
[1748563735956,1.99966,2639.1,2639.0,4.92279]
[1748563736265,1.99966,2639.1,2639.0,4.165]
[1748563736466,1.99966,2639.1,2639.0,4.92279]
[1748563737263,1.2419,2639.1,2639.0,8.13059]
[1748563737452,1.99966,2639.1,2639.0,8.13059]
[1748563737657,1.2419,2639.1,2639.0,8.13059]
[1748563738159,1.99966,2639.1,2639.0,8.13059]
[1748563738364,1.99966,2639.1,2639.0,4.92279]
[1748563738962,1.2419,2639.1,2639.0,4.92279]
[1748563739465,1.2419,2639.1,2639.0,8.13059]
[1748563740963,0.00569141,2639.3,2639.2,0.75774]
[1748563741351,2.00240141,2639.3,2639.2,0.75774]
[1748563741560,1.24469141,2639.3,2639.2,0.75774]
[1748563742464,2.00240141,2639.3,2639.2,0.75774]
[1748563742762,1.24469141,2639.3,2639.2,0.75774]
[1748563742963,0.00569141,2639.3,2639.2,0.75774]
[1748563744763,0.75776,2639.1,2639.0,3.2078]
[1748563744962,0.75779,2639.0,2638.9,4.9208]
[1748563745767,0.75775,2639.2,2639.1,0.75774]
[1748563745970,2.14385998,2639.3,2639.2,0.75774]
[1748563746968,0.75777,2639.2,2639.1,0.75774]
[1748563747166,2.05767,2639.2,2639.1,0.75774]
[1748563747666,2.05767,2639.2,2639.1,4.92074]
[1748563748068,0.75779,2639.1,2639.0,0.75777]
[1748563748370,2.05769,2639.1,2639.0,4.92077]
[1748563748563,0.75779,2639.0,2638.9,3.96562]
[1748563748770,2.05769,2639.0,2638.9,8.12862]
[1748563748963,0.75776,2639.2,2639.1,0.75774]
[1748563749170,0.07562998,2639.3,2638.9,7.3708]
[1748563749371,0.75779,2639.0,2638.9,3.2078]
[1748563749672,0.75779,2639.0,2638.9,8.12862]
[1748563749868,0.75779,2639.0,2638.9,4.92082]
[1748563750065,0.75797,2638.4,2638.3,4.92098]
[1748563750566,0.75796,2638.5,2638.4,0.75795]
[1748563752268,0.75797,2638.4,2638.3,4.163]
[1748563752472,0.75802,2638.2,2638.1,0.00569141]
[1748563752769,0.75802,2638.2,2638.1,4.92674141]
[1748563754059,1.99791,2638.3,2638.2,0.75802]
[1748563754258,1.2399,2638.3,2638.2,0.75802]
[1748563754464,0.7579,2638.7,2638.6,0.75789]
[1748563754876,1.2331,2638.8,2638.5,0.75792]
[1748563754877,0.75793,2638.6,2638.5,0.75792]
[1748563755069,1.99103,2638.6,2638.5,0.75792]
[1748563755470,1.99102,2638.6,2638.5,0.75794]
[1748563755670,0.75794,2638.5,2638.4,3.96576]
[1748563756070,0.75794,2638.5,2638.4,3.2078]
[1748563758572,1.92286428,2638.5,2638.4,3.2078]
[1748563759973,0.75799,2638.3,2638.2,4.903]
[1748563761075,0.75802,2638.2,2638.1,0.76374141]
[1748563761265,0.75802,2638.2,2638.1,4.90874141]
[1748563761971,0.75802,2638.2,2638.1,4.15069141]
[1748563762371,0.75802,2638.2,2638.1,4.90874141]
[1748563762674,0.75802,2638.2,2638.1,4.15069141]
[1748563762875,2.09232,2638.2,2638.1,4.15069141]
[1748563763076,2.09232,2638.2,2638.1,4.90874141]
[1748563763574,2.09232,2638.2,2638.1,4.15069141]
[1748563764076,2.09232,2638.2,2638.1,4.90874141]
[1748563764775,2.09232,2638.2,2638.1,4.15069141]
[1748563765074,2.09232,2638.2,2638.1,0.00569141]
[1748563765869,3.25651364,2638.2,2638.1,0.00569141]
[1748563766377,0.75814,2637.8,2637.7,4.8079]
[1748563767474,2.07494,2637.8,2637.7,4.8079]
[1748563770176,0.75817,2637.7,2637.6,3.2078]
[1748563770378,0.7582,2637.6,2637.5,0.00569141]
[1748563770569,1.89537,2637.8,2637.7,0.75816]
[1748563770570,0.75817,2637.8,2637.7,0.75816]
[1748563771072,0.75817,2637.8,2637.7,1.96726]
[1748563771470,2.51695,2638.3,2637.7,1.96726]
[1748563771471,6.03184382,2639.3,2637.8,0.75814]
[1748563771676,5.29070061,2639.4,2638.4,0.75797]
[1748563771677,4.03568857,2638.5,2638.4,0.75797]
[1748563772271,4.03568857,2638.5,2638.4,2.59677]
[1748563772671,4.03568857,2638.5,2638.4,1.8388]
[1748563772879,4.03568857,2638.5,2638.4,4.146]
[1748563773679,5.35398857,2638.5,2638.4,4.146]
[1748563774178,4.03568857,2638.5,2638.4,4.146]
[1748563774380,4.03568857,2638.5,2638.4,4.90397]
[1748563774581,4.03568857,2638.5,2638.4,4.146]
[1748563775585,0.82788857,2638.5,2638.4,4.146]
[1748563775883,0.82788857,2638.5,2638.4,4.90397]
[1748563776186,0.82788857,2638.5,2638.4,4.146]
[1748563777271,0.82788857,2638.5,2638.4,5.3779]
[1748563778386,0.82788857,2638.5,2638.4,6.13587]
[1748563779779,0.82788857,2638.5,2638.4,5.3779]
[1748563780378,1.97936595,2638.5,2638.4,6.13587]
[1748563780787,1.97950031,2638.5,2638.4,6.13587]
[1748563781181,1.22155031,2638.5,2638.4,6.13587]
[1748563781383,0.06993857,2638.5,2638.4,6.13587]
[1748563781687,0.00569141,2638.7,2638.6,0.75791]
[1748563781986,3.2078,2639.3,2638.6,3.2078]
[1748563782289,0.75791,2638.6,2638.5,1.37421]
[1748563782486,0.7579,2638.7,2638.6,0.7579]
[1748563782787,0.7579,2638.7,2638.6,16.5611]
[1748563783286,0.7579,2638.7,2638.6,1.3611]
[1748563783486,1.3147,2638.9,2638.6,3.811]
[1748563783684,0.75788,2638.8,2638.7,0.75788]
[1748563783891,0.75788,2638.7,2638.6,1.36109]
[1748563784283,0.75787,2638.8,2638.7,0.75787]
[1748563784483,0.75788,2638.7,2638.6,1.36109]
[1748563785093,0.75788,2638.7,2638.6,0.6032]
[1748563785592,0.75788,2638.7,2638.6,1.36111]
[1748563786495,0.75788,2638.7,2638.6,0.6032]
[1748563787090,0.617,2638.9,2638.6,0.6032]
[1748563787294,0.75786,2638.8,2638.7,0.75785]
[1748563788295,0.75786,2638.8,2638.7,2.02925]
[1748563788788,0.75786,2638.8,2638.7,1.2714]
[1748563789893,0.75788,2638.7,2638.6,0.6032]
[1748563790695,0.82781857,2638.7,2638.6,1.3611]
[1748563790896,0.82781857,2638.7,2638.6,0.6032]
[1748563792691,0.75791,2638.6,2638.5,3.2078]
[1748563793398,0.75791,2638.6,2638.5,0.75794]
[1748563794889,0.06993857,2638.7,2638.2,0.6044]
[1748563795089,0.75799,2638.4,2638.3,4.88498]
[1748563795497,0.75796,2638.5,2638.4,0.75795]
[1748563797796,0.06993857,2638.7,2638.6,0.75791]
[1748563798100,0.82781857,2638.7,2638.6,0.75791]
[1748563798699,0.75793,2638.6,2638.5,0.75792]
[1748563798998,0.75793,2638.6,2638.5,1.2494]
[1748563799199,0.75794,2638.5,2638.4,3.2078]
[1748563799403,0.75794,2638.5,2638.4,7.3348]
[1748563799798,0.75794,2638.5,2638.4,3.2078]
[1748563800000,0.75794,2638.5,2638.4,8.09276]
[1748563800694,0.75794,2638.5,2638.4,7.3348]
[1748563800900,0.75794,2638.5,2638.4,3.2078]
[1748563801102,0.75794,2638.5,2638.4,7.3348]
[1748563801507,0.75794,2638.5,2638.4,8.09277]
[1748563802006,0.06993857,2638.7,2638.4,7.3348]
[1748563802204,0.75794,2638.6,2638.5,2.06702]
[1748563802408,0.82783857,2638.7,2638.6,0.75791]
[1748563802804,0.82783857,2638.7,2638.6,1.38221]
[1748563803405,0.82783857,2638.7,2638.6,0.6243]
[1748563803807,1.01703857,2638.7,2638.6,0.6243]
[1748563804915,0.9471,2638.7,2638.6,0.6243]
[1748563805909,0.1892,2638.7,2638.6,1.38221]
[1748563806111,1.9489,2639.4,2638.8,1.89461]
[1748563806420,0.75777,2639.1,2639.0,0.75777]
[1748563806716,0.75779,2639.0,2638.9,9.3117]
[1748563806916,0.75779,2639.1,2639.0,0.75778]
[1748563807716,0.75779,2639.1,2639.0,1.40508]
[1748563809215,1.90567862,2639.1,2639.0,1.40508]
[1748563809420,1.90567862,2639.1,2639.0,0.6473]
[1748563809822,0.75779,2639.1,2639.0,4.7733]
[1748563810028,1.90568343,2639.1,2639.0,4.7733]
[1748563810718,1.90568343,2639.1,2639.0,0.6473]
[1748563810924,0.75779,2639.0,2638.9,4.126]
[1748563811224,2.05139,2639.0,2638.9,4.126]
[1748563811523,0.75782,2638.9,2638.8,0.00569141]
[1748563811713,2.05142,2638.9,2638.8,0.00569141]
[1748563812318,3.19967771,2638.9,2638.8,0.00569141]
[1748563815125,3.19967771,2638.9,2638.8,0.76354141]
[1748563815328,1.14825771,2638.9,2638.8,0.76354141]
[1748563815521,1.90607771,2638.9,2638.8,0.76354141]
[1748563816626,0.75782,2638.9,2638.8,0.76354141]
[1748563819023,0.75782,2638.9,2638.8,0.00569141]
[1748563819623,1.39462,2638.9,2638.8,0.00569141]
[1748563820227,1.46455857,2638.9,2638.8,0.00569141]
[1748563820726,1.46455857,2638.9,2638.8,0.76354141]
[1748563820927,1.46455857,2638.9,2638.8,0.00569141]
[1748563828134,1.46455857,2638.9,2638.8,0.76354141]
[1748563828433,1.46455857,2638.9,2638.8,0.00569141]
[1748563829428,3.78841,2639.5,2638.8,0.00569141]
[1748563829429,2.24325382,2640.0,2638.8,8.21349141]
[1748563829638,2.24325382,2640.0,2639.8,0.75756]
[1748563829639,3.12674831,2639.9,2639.8,0.75756]
[1748563829834,0.75757,2639.8,2639.7,0.75757]
[1748563830033,1.90317831,2639.8,2639.7,0.75757]
[1748563830229,0.75757,2639.8,2639.7,0.75757]
[1748563833430,0.75759,2639.7,2639.6,1.4156]
[1748563833626,0.75759,2639.8,2639.7,0.75759]
[1748563834437,0.82752857,2639.8,2639.7,0.75759]
[1748563835934,0.82752857,2639.8,2639.6,1.41561]
[1748563836334,0.06993857,2639.8,2639.7,0.75759]
[1748563836528,0.82749857,2639.8,2639.7,2.01319]
[1748563836836,0.06993857,2639.8,2639.7,2.01319]
[1748563837034,0.82749857,2639.8,2639.7,2.01319]
[1748563837331,0.06993857,2639.8,2639.7,2.01319]
[1748563837533,0.82749857,2639.8,2639.7,2.01319]
[1748563840334,0.06993857,2639.8,2639.7,2.01319]
[1748563841041,0.82749857,2639.8,2639.7,1.2556]
[1748563841240,0.82749857,2639.8,2639.7,5.3646]
[1748563841435,0.82749857,2639.8,2639.7,6.12219]
[1748563842137,0.75759,2639.7,2639.6,0.658]
[1748563842338,0.75759,2639.7,2639.6,4.767]
[1748563842634,0.75759,2639.7,2639.6,6.80052]
[1748563843645,0.75759,2639.7,2639.6,6.0429]
[1748563844439,0.75759,2639.7,2639.6,6.80052]
[1748563845240,5.10112,2640.7,2639.7,1.89397]
[1748563845437,0.75751,2640.0,2639.9,0.00569141]
[1748563847242,2.66091,2640.0,2639.9,0.00569141]
[1748563849032,8.79655434,2640.0,2639.9,1.41e-06]
[1748563849749,8.86649291,2640.0,2639.9,1.41e-06]
[1748563854447,8.86479989,2640.0,2639.9,1.41e-06]
[1748563857553,8.86546142,2640.0,2639.9,1.41e-06]
[1748563859559,0.75788,2638.7,2638.6,1.8946]
[1748563860957,0.75787,2638.8,2638.7,0.75788]
[1748563861153,0.75788,2638.7,2638.6,2.65249]
[1748563861345,0.75788,2638.7,2638.6,1.41719]
[1748563861550,0.75786,2638.8,2638.7,0.75788]
[1748563861747,1.89449,2639.0,2638.6,0.6593]
[1748563862151,5.10224,2639.1,2638.6,0.6593]
[1748563862451,1.89449,2639.0,2638.6,1.41719]
[1748563862655,0.75787,2638.8,2638.7,0.75787]
[1748563862851,5.10224,2639.1,2638.6,5.6593]
[1748563862852,3.2078,2639.1,2638.6,5.6593]
[1748563863058,0.7578,2639.0,2638.9,0.75779]
[1748563863455,0.7578,2639.0,2638.9,5.75779]
[1748563863654,3.96558,2639.1,2639.0,0.75779]
[1748563863849,3.96558,2639.1,2639.0,1.37649]
[1748563864056,3.96558,2639.1,2639.0,6.37649]
[1748563864360,3.96558,2639.1,2639.0,0.6187]
[1748563865062,0.75785,2638.8,2638.7,3.2078]
[1748563865356,0.75785,2638.8,2638.7,12.9655]
[1748563865558,0.75785,2638.8,2638.7,0.6647]
[1748563867058,0.75784,2638.9,2638.8,0.75783]
[1748563867660,0.75785,2638.8,2638.7,4.63036]
[1748563867864,0.75785,2638.8,2638.7,3.8725]
[1748563868462,0.75785,2638.8,2638.7,0.6647]
[1748563869856,0.75794,2638.5,2638.4,0.00569141]
[1748563870065,0.75794,2638.5,2638.4,0.61749141]
[1748563870366,0.75794,2638.5,2638.4,1.37546141]
[1748563872162,0.75794,2638.5,2638.4,0.61749141]
[1748563874056,0.75794,2638.5,2638.4,1.37546141]
[1748563874461,0.00569141,2638.7,2638.6,0.75791]
[1748563874759,0.75794,2638.6,2638.5,0.75792]
[1748563875661,0.75794,2638.5,2638.4,0.00569141]
[1748563875851,3.96574,2638.5,2638.4,0.00569141]
[1748563877464,5.10162969,2638.5,2638.4,0.00569141]
[1748563877966,6.33292969,2638.5,2638.4,0.00569141]
[1748563881062,5.26697857,2638.5,2638.4,0.00569141]
[1748563881365,6.40225088,2638.5,2638.4,0.00569141]
[1748563882761,0.75808,2638.0,2637.9,0.6218]
[1748563882963,0.75808,2638.0,2637.9,1.2659]
[1748563883164,0.75808,2638.0,2637.9,2.5246]
[1748563883370,0.75808,2638.0,2637.9,5.7324]
[1748563884172,0.75808,2638.0,2637.9,2.5246]
[1748563888178,0.75808,2638.0,2637.9,1.2659]
[1748563888468,0.75814,2637.8,2637.7,0.00569141]
[1748563888859,0.75814,2637.8,2637.7,4.08469141]
[1748563889066,3.2078,2638.2,2637.7,10.39429141]
[1748563889370,0.75809,2638.0,2637.9,0.75809]
[1748563889573,0.75809,2638.0,2637.9,0.603]
[1748563889870,0.75809,2638.0,2637.9,20.803]
[1748563890070,0.75809,2638.0,2637.9,22.1354]
[1748563890273,5.17265857,2638.5,2637.9,10.1432]
[1748563890573,0.75808,2638.1,2638.0,1.9461]
[1748563890776,0.75808,2638.1,2638.0,4.6927]
[1748563891371,0.75808,2638.1,2638.0,5.45078]
[1748563891672,0.75808,2638.1,2638.0,4.6927]
[1748563893572,0.75808,2638.1,2638.0,0.6137]
[1748563893767,0.75808,2638.1,2638.0,4.6927]
[1748563894168,0.75808,2638.1,2638.0,0.6137]
[1748563894374,1.97998,2638.1,2638.0,0.6137]
[1748563895173,0.75808,2638.1,2638.0,0.6137]
[1748563895475,0.82801857,2638.1,2638.0,0.6137]
[1748563895982,0.06993857,2638.1,2638.0,6.37178]
[1748563896272,0.75798,2638.4,2638.3,0.75799]
[1748563896477,0.75794,2638.5,2638.4,0.6492]
[1748563896679,0.5684,2638.6,2638.4,0.6492]
[1748563897765,1.13356332,2638.5,2638.4,0.6492]
[1748563898268,1.13357238,2638.5,2638.4,0.6492]
[1748563898780,1.13357238,2638.5,2638.0,3.2078]
[1748563899078,1.13357238,2638.4,2638.1,0.6545]
[1748563900079,1.77857238,2638.4,2638.1,0.6545]
[1748563900281,1.13357238,2638.3,2638.1,0.6545]
[1748563901383,0.645,2638.4,2638.1,0.6545]
[1748563901577,1.3233,2638.3,2638.1,0.6545]
[1748563903195,0.645,2638.4,2638.1,0.6545]
[1748563904182,3.7762,2638.6,2638.1,0.6545]
[1748563904384,1.13467818,2638.5,2638.3,3.2078]
[1748563904586,1.7362,2638.5,2638.4,0.6676]
[1748563905783,1.7362,2638.5,2638.4,15.8676]
[1748563906085,2.87126519,2638.5,2638.4,17.1442]
[1748563906879,2.87121938,2638.5,2638.4,17.1442]
[1748563907074,1.7362,2638.5,2638.4,17.1442]
[1748563909381,1.80613857,2638.5,2638.4,17.1442]
[1748563916791,1.80613857,2638.5,2638.4,1.9442]
[1748563917289,1.80613857,2638.5,2638.4,17.1442]
[1748563921089,0.00824043,2640.0,2638.4,22.1442]
[1748563921289,1.9395,2639.5,2639.1,3.2078]
[1748563921486,1.9395,2639.5,2639.2,6.6279]
[1748563921989,1.9395,2639.5,2639.3,1.2514]
[1748563922191,1.9395,2639.5,2639.2,5.3765]
[1748563922386,1.2899,2639.4,2639.2,5.3765]
[1748563922786,1.2899,2639.4,2639.3,15.2]
[1748563923283,0.6496,2639.5,2639.3,15.2]
[1748563924193,0.6496,2639.5,2639.3,16.4778]
[1748563924594,0.71953857,2639.5,2639.3,16.4778]
[1748563925593,0.06993857,2639.5,2639.3,16.4778]
[1748563925794,0.06993857,2639.5,2639.4,1.2778]
[1748563926291,0.25923857,2639.5,2639.4,1.2778]
[1748563927197,0.6425,2639.9,2639.4,4.4856]
[1748563927496,3.2078,2640.5,2639.8,3.2078]
[1748563927794,1.9057,2640.1,2639.8,3.2078]
[1748563928198,3.2078,2640.8,2639.8,3.8122]
[1748563928400,1.9428,2640.6,2639.9,1.2259]
[1748563928588,1.3003,2640.5,2640.1,3.2078]
[1748563928793,1.3003,2640.5,2640.2,4.062]
[1748563928996,1.3003,2640.5,2640.2,4.7056]
[1748563930104,1.3003,2640.5,2640.3,1.2393]
[1748563931289,0.6425,2640.6,2640.3,1.2393]
[1748563931497,0.6425,2640.6,2640.4,3.2078]
[1748563931997,1.9202,2640.6,2640.4,3.2078]
[1748563932796,1.9202,2640.6,2640.2,4.7056]
[1748563933295,1.9202,2640.6,2640.2,0.6436]
[1748563933601,1.9202,2640.6,2640.3,4.061]
[1748563933904,3.2078,2640.4,2640.1,4.061]
[1748563934104,1.3251,2640.3,2640.1,4.061]
[1748563934603,0.6325,2640.2,2640.1,4.061]
[1748563935501,0.6325,2640.2,2640.0,15.2]
[1748563935699,1.9428,2640.1,2640.0,4.046]
[1748563936699,1.9428,2640.1,2639.9,4.046]
[1748563939905,2.01273857,2640.1,2639.9,4.046]
[1748563941601,2.01273857,2640.1,2640.0,3.2078]
[1748563941802,2.01273857,2640.1,2639.9,4.046]
[1748563943507,2.01273857,2640.1,2639.9,7.2538]
[1748563946313,0.06993857,2640.1,2639.9,7.2538]
[1748563946515,0.71323857,2640.1,2639.9,7.2538]
[1748563947413,0.71323857,2640.1,2639.9,3.2078]
[1748563947615,1.3306,2640.0,2639.9,3.2078]
[1748563949315,1.3306,2640.0,2639.7,19.246]
[1748563949518,1.3306,2640.0,2639.8,4.4787]
[1748563950219,1.3306,2640.0,2639.7,4.046]
[1748563950519,3.2078,2639.8,2639.4,4.046]
[1748563950720,2.5012,2639.7,2639.4,4.046]
[1748563950921,1.2466,2639.6,2639.4,4.046]
[1748563952423,1.2466,2639.6,2639.4,5.336]
[1748563952617,1.2466,2639.6,2639.4,4.046]
[1748563956223,1.31653857,2639.6,2639.4,4.046]
[1748563956731,1.31653857,2639.6,2639.4,5.3816]
[1748563960827,6.31653857,2639.6,2639.1,0.00569141]
[1748563961135,1.11934473,2639.5,2639.1,0.00569141]
[1748563961332,1.11934473,2639.4,2639.1,0.00569141]
[1748563962435,0.6078,2639.3,2639.1,0.00569141]
[1748563962830,3.2078,2639.5,2639.1,0.00569141]
[1748563963331,1.11925143,2639.4,2639.1,1.31309141]
[1748563963530,3.2078,2639.5,2639.1,1.31309141]
[1748563963725,3.2078,2639.5,2639.2,0.6361]
[1748563963933,1.88123857,2639.6,2639.2,0.6361]
[1748563964132,1.11910314,2639.5,2639.2,0.6361]
[1748563964336,0.06993857,2639.6,2639.3,1.3074]
[1748563964536,0.1894,2639.4,2639.3,1.3074]
[1748563965538,0.1894,2639.4,2639.3,4.5152]
[1748563970345,0.25933857,2639.4,2639.3,3.2078]
[1748563971644,0.25933857,2639.4,2639.3,4.5259]
[1748563974239,3.8386,2640.1,2639.3,4.5259]
[1748563974240,3.2078,2640.1,2639.3,9.5259]
[1748563974442,3.2078,2640.1,2639.6,3.2078]
[1748563974643,3.2078,2640.1,2639.7,5.9836]
[1748563974843,3.2078,2640.1,2639.8,1.2908]
[1748563977444,1.2427,2640.2,2639.8,1.2908]
[1748563978447,0.6325,2640.3,2639.8,1.2908]
[1748563978648,1.8992,2640.3,2639.8,1.2908]
[1748563980146,3.2078,2640.4,2639.8,1.2908]
[1748563980347,1.11667881,2640.3,2639.8,1.2908]
[1748563980544,1.8739,2640.3,2639.9,15.2]
[1748563981246,1.8739,2640.3,2639.9,15.8308]
[1748563982157,1.3085,2640.2,2639.9,19.0386]
[1748563983156,0.6072,2640.3,2639.9,19.0386]
[1748563983459,0.6072,2640.3,2640.0,1.3339]
[1748563983653,1.9157,2640.3,2640.1,4.031]
[1748563983853,1.9157,2640.3,2640.1,4.6844]
[1748563984149,1.3085,2640.2,2640.1,4.6844]
[1748563991662,6.3085,2640.2,2639.6,3.2078]
[1748563991854,3.2078,2640.0,2639.5,4.03]
[1748563992161,1.9823,2640.1,2639.6,0.6552]
[1748563992352,1.9822,2639.9,2639.2,7.2378]
[1748563992552,1.3165,2639.8,2639.2,7.893]
[1748563994755,3.2078,2639.7,2639.2,3.2078]
[1748563994953,1.3228,2639.6,2639.1,0.00569141]
[1748563995150,3.2078,2639.4,2639.1,0.00569141]
[1748563995454,1.3228,2639.3,2639.1,0.00569141]
[1748564003552,3.2078,2639.4,2639.1,0.00569141]
[1748564003761,1.259,2639.3,2639.1,0.00569141]
[1748564006463,3.2078,2639.4,2639.1,0.00569141]
[1748564007060,3.2078,2639.4,2639.1,0.65749141]
[1748564007256,3.2078,2639.4,2639.2,1.2373]
[1748564013175,1.2464,2639.7,2639.3,3.2078]
[1748564013472,0.6327,2640.0,2639.3,7.2238]
[1748564013669,0.6327,2640.0,2639.4,1.2209]
[1748564013975,1.2707,2640.2,2639.5,15.8319]
[1748564014168,1.1142803,2640.1,2639.6,1.2209]
[1748564014367,1.2707,2640.2,2639.7,4.016]
[1748564014570,1.2707,2640.2,2639.8,1.2209]
[1748564014869,1.1143896,2640.1,2639.8,1.2209]
[1748564015066,1.2707,2640.2,2639.9,0.6341]
[1748564015266,1.1144486,2640.1,2639.9,0.6341]
[1748564015474,1.2707,2640.2,2639.9,0.6341]
[1748564015676,1.11444452,2640.1,2639.9,0.6341]
[1748564015874,1.2707,2640.2,2639.9,0.6341]
[1748564016174,0.6309,2640.4,2640.0,1.3327]
[1748564016472,1.9326,2640.4,2640.0,1.3327]
[1748564017476,0.6309,2640.4,2640.0,1.3327]
[1748564017674,1.3017,2640.6,2640.1,4.6765]
[1748564017876,1.3017,2640.6,2640.2,1.3327]
[1748564018072,0.6107,2640.5,2640.2,1.3327]
[1748564019374,3.2078,2640.7,2640.2,1.3327]
[1748564019584,0.6107,2640.6,2640.3,0.6296]
[1748564019874,1.8286,2640.6,2640.3,0.6296]
[1748564022374,1.8286,2640.6,2640.1,4.015]
[1748564023277,1.8286,2640.6,2640.1,5.3066]
[1748564023479,1.8286,2640.6,2640.2,1.2916]
[1748564026981,3.2078,2640.7,2640.2,1.9117]
[1748564027177,0.6224,2640.9,2640.4,3.2078]
[1748564027380,0.6224,2640.9,2640.5,4.6141]
[1748564027580,1.8372,2640.9,2640.5,5.8477]
[1748564030180,0.6479,2641.1,2640.5,5.8477]
[1748564030381,0.6479,2641.1,2640.7,3.2078]
[1748564030581,0.6479,2641.1,2640.8,1.283]
[1748564030981,0.6479,2641.1,2640.9,0.6374]
[1748564032180,3.2078,2641.3,2640.9,0.6374]
[1748564032385,3.2078,2641.3,2640.9,4.6374]
[1748564032588,3.2078,2641.3,2641.0,1.283]
[1748564032779,3.2078,2641.8,2641.0,4.4908]
[1748564033084,1.9242,2641.7,2641.3,3.2078]
[1748564033485,1.9242,2641.7,2641.4,0.6275]
[1748564034184,1.9242,2641.7,2641.3,3.2078]
[1748564034586,0.6099,2641.6,2641.3,3.2078]
[1748564034775,1.2585,2641.5,2641.3,3.2078]
[1748564035784,1.2585,2641.5,2641.1,0.6275]
[1748564035987,1.2585,2641.5,2641.2,1.2309]
[1748564036989,0.6314,2641.7,2641.2,1.2309]
[1748564037587,1.8415,2641.7,2641.3,3.999]
[1748564038686,1.8415,2641.7,2641.4,1.2396]
[1748564039885,1.8415,2641.7,2641.5,0.6029]
[1748564040486,0.6314,2641.7,2641.5,0.6029]
[1748564041089,0.6314,2641.7,2641.5,1.8866]
[1748564043001,1.3292,2642.0,2641.5,1.8866]
[1748564043192,0.6535,2641.9,2641.5,1.8866]
[1748564043491,1.3214,2641.8,2641.5,1.8866]
[1748564044498,3.2078,2641.6,2641.0,3.2078]
[1748564044790,3.8613,2641.9,2641.1,4.6088]
[1748564044988,1.3214,2641.8,2641.3,3.2078]
[1748564045194,1.3214,2641.8,2641.2,1.255]
[1748564045491,1.3214,2641.8,2641.3,3.999]
[1748564045685,1.3214,2641.8,2641.4,5.2551]
[1748564046086,1.3214,2641.8,2641.5,0.6098]
[1748564046891,1.3214,2641.8,2641.5,1.8659]
[1748564047191,3.8613,2641.9,2641.5,2.484]
[1748564047392,3.8613,2641.9,2641.6,1.2561]
[1748564048192,3.8613,2641.9,2641.5,1.2279]
[1748564048193,1.2283,2641.8,2641.5,1.2279]
[1748564049885,1.2283,2641.8,2641.5,2.5628]
[1748564050481,0.6535,2641.9,2641.5,2.5628]
[1748564050693,0.6535,2641.9,2641.6,1.3349]
[1748564051589,4.4231,2642.1,2641.6,1.3349]
[1748564051791,1.09951698,2642.0,2641.6,1.3349]
[1748564051991,5.0906,2642.1,2641.6,1.3349]
[1748564052190,3.2078,2642.1,2641.6,1.3349]
[1748564052386,3.2078,2642.1,2641.6,1.63599632]
[1748564052692,3.2078,2642.1,2641.7,15.2]
[1748564052890,3.2078,2642.1,2641.8,3.998]